fUSD/lending_fUSD_20250702
["ID","MTS","AMOUNT","RATE_DAILY","PERIOD"]
[369035674,1751440265047,-490.0,0.00016868,2]
[369035675,1751440265057,-251.49618473,0.00016868,2]
[369035676,1751440265067,-568.75,0.00016868,2]
[369035677,1751440265077,-490.0,0.00016868,2]
[369035678,1751440265091,-490.0,0.00016868,2]
[369035679,1751440265102,-867.15,0.00016868,2]
[369035680,1751440265112,-490.0,0.00016868,2]
[369035681,1751440265122,-490.0,0.00016868,2]
[369035682,1751440265132,-490.0,0.00016868,2]
[369035683,1751440265143,-490.0,0.00016868,2]
[369035684,1751440265153,-490.0,0.00016868,2]
[369035685,1751440265163,-490.0,0.00016868,2]
[369035686,1751440265172,-490.0,0.00016868,2]
[369035687,1751440265182,-490.0,0.00016868,2]
[369035688,1751440265192,-490.0,0.00016868,2]
[369035689,1751440265202,-490.0,0.00016868,2]
[369035690,1751440265217,-490.0,0.00016868,2]
[369035691,1751440265227,-490.0,0.00016868,2]
[369035692,1751440265306,-490.0,0.00016868,2]
[369035693,1751440265316,-490.0,0.00016868,2]
[369035694,1751440265326,-490.0,0.00016868,2]
[369035695,1751440265335,-490.0,0.00016868,2]
[369035696,1751440265344,-493.67841453,0.00016868,2]
[369035697,1751440265356,-490.0,0.00016868,2]
[369035698,1751440265365,-490.0,0.00016868,2]
[369035699,1751440265374,-490.0,0.00016868,2]
[369035700,1751440265384,-490.0,0.00016868,2]
[369035701,1751440265393,-708.55,0.00016868,2]
[369035702,1751440265403,-490.0,0.00016868,2]
[369035703,1751440265412,-493.29742661,0.00016868,2]
[369035704,1751440265422,-490.0,0.00016868,2]
[369035705,1751440265431,-610.35,0.00016868,2]
[369035706,1751440265441,-490.0,0.00016868,2]
[369035707,1751440265451,-490.0,0.00016868,2]
[369035708,1751440265464,-490.0,0.00016868,2]
[369035709,1751440265473,-490.0,0.00016868,2]
[369035710,1751440265483,-490.0,0.00016868,2]
[369035711,1751440265492,-490.0,0.00016868,2]
[369035712,1751440265502,-490.0,0.00016868,2]
[369035713,1751440265511,-222.6943797,0.00016868,2]
[369035714,1751440265520,-493.06104882,0.00016868,2]
[369035715,1751440265530,-490.0,0.00016868,2]
[369035716,1751440265539,-490.0,0.00016868,2]
[369035717,1751440265549,-491.68534944,0.00016868,2]
[369035718,1751440265558,-490.0,0.00016868,2]
[369035719,1751440265570,-490.0,0.00016868,2]
[369035720,1751440265579,-490.0,0.00016868,2]
[369035721,1751440265589,-490.0,0.00016868,2]
[369035722,1751440265598,-490.0,0.00016868,2]
[369035723,1751440265611,-490.0,0.00016868,2]
[369035724,1751440265621,-894.38,0.00016868,2]
[369035725,1751440265631,-490.0,0.00016868,2]
[369035726,1751440265641,-490.0,0.00016868,2]
[369035727,1751440265653,-490.0,0.00016868,2]
[369035728,1751440265662,-490.0,0.00016868,2]
[369035729,1751440265672,-490.0,0.00016868,2]
[369035730,1751440265681,-493.7043816,0.00016868,2]
[369035731,1751440265691,-486.39340564,0.00016868,2]
[369035732,1751440265700,-492.18257886,0.00016868,2]
[369035733,1751440265711,-490.0,0.00016868,2]
[369035734,1751440265721,-490.0,0.00016868,2]
[369035735,1751440265730,-490.0,0.00016868,2]
[369035736,1751440265739,-490.0,0.00016868,2]
[369035737,1751440265749,-490.0,0.00016868,2]
[369035738,1751440265759,-406.90482118,0.00016868,2]
[369035739,1751440265770,-490.0,0.00016868,2]
[369035740,1751440265780,-422.3,0.00016868,2]
[369035741,1751440265789,-490.0,0.00016868,2]
[369035742,1751440265799,-520.22456406,0.00016868,2]
[369035743,1751440265809,-495.2847414,0.00016868,2]
[369035744,1751440265818,-490.0,0.00016868,2]
[369035745,1751440265840,-490.0,0.00016868,2]
[369035746,1751440265860,-490.0,0.00016868,2]
[369035747,1751440265881,-490.0,0.00016868,2]
[369035748,1751440265903,-490.0,0.00016868,2]
[369035749,1751440265925,-428.5752487,0.00016868,2]
[369035750,1751440265948,-490.0,0.00016868,2]
[369035751,1751440265969,-178.7323488,0.00016868,2]
[369035752,1751440265991,-490.0,0.00016868,2]
[369035753,1751440266013,-490.0,0.00016868,2]
[369035754,1751440266028,-490.0,0.00016868,2]
[369035755,1751440266038,-490.0,0.00016868,2]
[369035756,1751440266048,-490.0,0.00016868,2]
[369035757,1751440266057,-492.35133796,0.00016868,2]
[369035758,1751440266067,-490.0,0.00016868,2]
[369035759,1751440266077,-490.0,0.00016868,2]
[369035760,1751440266086,-490.0,0.00016868,2]
[369035761,1751440266096,-490.0,0.00016868,2]
[369035762,1751440266105,-490.0,0.00016868,2]
[369035763,1751440266115,-493.17487505,0.00016868,2]
[369035764,1751440266124,-1051.41,0.00016868,2]
[369035765,1751440266133,-490.0,0.00016868,2]
[369035766,1751440266143,-490.0,0.00016868,2]
[369035767,1751440266152,-490.0,0.00016868,2]
[369035768,1751440266162,-490.0,0.00016868,2]
[369035769,1751440266172,-490.0,0.00016868,2]
[369035770,1751440266182,-490.0,0.00016868,2]
[369035771,1751440266191,-490.0,0.00016868,2]
[369035772,1751440266200,-490.0,0.00016868,2]
[369035773,1751440266211,-637.61,0.00016868,2]
[369035774,1751440266220,-490.0,0.00016868,2]
[369035775,1751440266230,-490.0,0.00016868,2]
[369035776,1751440266239,-490.0,0.00016868,2]
[369035777,1751440266248,-171.5,0.00016868,2]
[369035778,1751440266257,-490.0,0.00016868,2]
[369035779,1751440266266,-517.0,0.00016868,2]
[369035780,1751440266275,-490.0,0.00016868,2]
[369035781,1751440266285,-490.0,0.00016868,2]
[369035782,1751440266295,-490.0,0.00016868,2]
[369035783,1751440266304,-491.49508211,0.00016868,2]
[369035784,1751440266314,-539.99,0.00016868,2]
[369035785,1751440266324,-490.0,0.00016868,2]
[369035786,1751440266334,-492.28004384,0.00016868,2]
[369035787,1751440266343,-490.0,0.00016868,2]
[369035788,1751440266353,-490.0,0.00016868,2]
[369035789,1751440266364,-812.25,0.00016868,2]
[369035790,1751440266374,-491.36220879,0.00016868,2]
[369035791,1751440266384,-490.0,0.00016868,2]
[369035792,1751440266393,-490.0,0.00016868,2]
[369035793,1751440266404,-259.5538953,0.00016868,2]
[369035794,1751440266414,-490.0,0.00016868,2]
[369035795,1751440266423,-490.0,0.00016868,2]
[369035796,1751440266433,-490.0,0.00016868,2]
[369035797,1751440266443,-490.0,0.00016868,2]
[369035798,1751440266453,-490.0,0.00016868,2]
[369035799,1751440266464,-490.0,0.00016868,2]
[369035800,1751440266475,-490.0,0.00016868,2]
[369035801,1751440266484,-490.0,0.00016868,2]
[369035802,1751440266494,-490.0,0.00016868,2]
[369035803,1751440266504,-490.0,0.00016868,2]
[369035804,1751440266514,-490.0,0.00016868,2]
[369035805,1751440266524,-261.35126962,0.00016868,2]
[369035806,1751440266534,-490.0,0.00016868,2]
[369035807,1751440266544,-490.0,0.00016868,2]
[369035808,1751440266554,-490.0,0.00016868,2]
[369035809,1751440266565,-490.0,0.00016868,2]
[369035810,1751440266576,-490.0,0.00016868,2]
[369035811,1751440266586,-375.06680888,0.00016868,2]
[369035812,1751440266595,-490.0,0.00016868,2]
[369035813,1751440266606,-490.0,0.00016868,2]
[369035814,1751440266615,-490.0,0.00016868,2]
[369035815,1751440266625,-316.08081711,0.00016868,2]
[369035816,1751440266635,-490.0,0.00016868,2]
[369035817,1751440266646,-490.0,0.00016868,2]
[369035818,1751440266657,-494.45465992,0.00016868,2]
[369035819,1751440266667,-490.0,0.00016868,2]
[369035820,1751440266676,-498.70952625,0.00016868,2]
[369035821,1751440266686,-490.0,0.00016868,2]
[369035822,1751440266696,-493.04281453,0.00016868,2]
[369035823,1751440266706,-508.52,0.00016868,2]
[369035824,1751440266716,-493.35428404,0.00016868,2]
[369035825,1751440266726,-490.0,0.00016868,2]
[369035826,1751440266736,-490.0,0.00016868,2]
[369035827,1751440266745,-610.35,0.00016868,2]
[369035828,1751440266755,-490.0,0.00016868,2]
[369035829,1751440266765,-490.0,0.00016868,2]
[369035830,1751440266775,-490.0,0.00016868,2]
[369035831,1751440266785,-492.94014184,0.00016868,2]
[369035832,1751440266795,-548.97,0.00016868,2]
[369035833,1751440266804,-533.66,0.00016868,2]
[369035834,1751440266814,-490.0,0.00016868,2]
[369035835,1751440266824,-490.0,0.00016868,2]
[369035836,1751440266835,-490.0,0.00016868,2]
[369035837,1751440266844,-160.27,0.00016868,2]
[369035838,1751440266855,-490.0,0.00016868,2]
[369035839,1751440266865,-492.05011661,0.00016868,2]
[369035840,1751440266875,-490.0,0.00016868,2]
[369035841,1751440266884,-490.0,0.00016868,2]
[369035842,1751440266894,-490.0,0.00016868,2]
[369035843,1751440266904,-490.0,0.00016868,2]
[369035844,1751440266914,-490.0,0.00016868,2]
[369035845,1751440266924,-490.0,0.00016868,2]
[369035846,1751440266934,-490.0,0.00016868,2]
[369035847,1751440266944,-490.0,0.00016868,2]
[369035848,1751440266954,-490.0,0.00016868,2]
[369035849,1751440266964,-490.0,0.00016868,2]
[369035850,1751440266973,-490.0,0.00016868,2]
[369035851,1751440266983,-490.0,0.00016868,2]
[369035852,1751440266993,-490.0,0.00016868,2]
[369035853,1751440267002,-490.0,0.00016868,2]
[369035854,1751440267012,-490.0,0.00016868,2]
[369035855,1751440267022,-490.0,0.00016868,2]
[369035856,1751440267031,-490.0,0.00016868,2]
[369035857,1751440267042,-490.0,0.00016868,2]
[369035858,1751440267051,-490.0,0.00016868,2]
[369035859,1751440267061,-490.0,0.00016868,2]
[369035860,1751440267071,-490.0,0.00016868,2]
[369035861,1751440267081,-490.0,0.00016868,2]
[369035862,1751440267091,-492.2777628,0.00016868,2]
[369035863,1751440267100,-490.0,0.00016868,2]
[369035864,1751440267110,-490.0,0.00016868,2]
[369035865,1751440267120,-490.0,0.00016868,2]
[369035866,1751440267130,-490.0,0.00016868,2]
[369035867,1751440267140,-490.0,0.00016868,2]
[369035868,1751440267149,-490.0,0.00016868,2]
[369035869,1751440267159,-490.0,0.00016868,2]
[369035870,1751440267168,-493.11451251,0.00016868,2]
[369035871,1751440267178,-490.0,0.00016868,2]
[369035872,1751440267188,-490.0,0.00016868,2]
[369035873,1751440267198,-162.76878949,0.00016868,2]
[369035874,1751440267208,-492.19273521,0.00016868,2]
[369035875,1751440267218,-490.0,0.00016868,2]
[369035876,1751440267228,-490.0,0.00016868,2]
[369035877,1751440267238,-490.0,0.00016868,2]
[369035878,1751440267248,-490.0,0.00016868,2]
[369035879,1751440267258,-257.54,0.00016868,2]
[369035880,1751440267268,-490.0,0.00016868,2]
[369035881,1751440267278,-490.0,0.00016868,2]
[369035882,1751440267287,-494.24,0.00016868,2]
[369035883,1751440267297,-266.56242588,0.00016868,2]
[369035884,1751440267307,-492.91305134,0.00016868,2]
[369035885,1751440267317,-490.0,0.00016868,2]
[369035886,1751440267327,-492.28892144,0.00016868,2]
[369035887,1751440267336,-490.0,0.00016868,2]
[369035888,1751440267346,-490.0,0.00016868,2]
[369035889,1751440267356,-493.73432821,0.00016868,2]
[369035890,1751440267366,-490.0,0.00016868,2]
[369035891,1751440267376,-490.0,0.00016868,2]
[369035892,1751440267386,-490.0,0.00016868,2]
[369035893,1751440267396,-490.0,0.00016868,2]
[369035894,1751440267406,-490.0,0.00016868,2]
[369035895,1751440267416,-490.0,0.00016868,2]
[369035896,1751440267426,-490.0,0.00016868,2]
[369035897,1751440267436,-490.0,0.00016868,2]
[369035898,1751440267446,-490.0,0.00016868,2]
[369035899,1751440267456,-490.0,0.00016868,2]
[369035900,1751440267466,-490.0,0.00016868,2]
[369035901,1751440267476,-490.0,0.00016868,2]
[369035902,1751440267486,-490.0,0.00016868,2]
[369035903,1751440267496,-490.0,0.00016868,2]
[369035904,1751440267506,-490.0,0.00016868,2]
[369035905,1751440267515,-490.0,0.00016868,2]
[369035906,1751440267526,-490.0,0.00016868,2]
[369035907,1751440267536,-547.72506778,0.00016868,2]
[369035908,1751440267546,-495.65548679,0.00016868,2]
[369035909,1751440267556,-490.0,0.00016868,2]
[369035910,1751440267567,-241.81,0.00016868,2]
[369035911,1751440267579,-490.0,0.00016868,2]
[369035912,1751440267589,-490.0,0.00016868,2]
[369035913,1751440267598,-490.0,0.00016868,2]
[369035914,1751440267609,-490.0,0.00016868,2]
[369035915,1751440267619,-490.0,0.00016868,2]
[369035916,1751440267628,-490.0,0.00016868,2]
[369035917,1751440267639,-490.0,0.00016868,2]
[369035918,1751440267652,-490.0,0.00016868,2]
[369035919,1751440267662,-490.0,0.00016868,2]
[369035920,1751440267671,-490.0,0.00016868,2]
[369035921,1751440267681,-490.0,0.00016868,2]
[369035922,1751440267690,-490.0,0.00016868,2]
[369035923,1751440267700,-491.66461297,0.00016868,2]
[369035924,1751440267711,-490.0,0.00016868,2]
[369035925,1751440267721,-490.0,0.00016868,2]
[369035926,1751440267732,-1126.08,0.00016868,2]
[369035927,1751440267742,-490.0,0.00016868,2]
[369035928,1751440267752,-490.0,0.00016868,2]
[369035929,1751440267762,-490.0,0.00016868,2]
[369035930,1751440267771,-490.0,0.00016868,2]
[369035931,1751440267783,-490.0,0.00016868,2]
[369035932,1751440267793,-493.13343591,0.00016868,2]
[369035933,1751440267803,-490.0,0.00016868,2]
[369035934,1751440267813,-490.0,0.00016868,2]
[369035935,1751440267823,-490.0,0.00016868,2]
[369035936,1751440267833,-490.0,0.00016868,2]
[369035937,1751440267843,-556.73594097,0.00016868,2]
[369035938,1751440267852,-741.95,0.00016868,2]
[369035939,1751440267863,-490.0,0.00016868,2]
[369035940,1751440267873,-490.0,0.00016868,2]
[369035941,1751440267883,-210.00919384,0.00016868,2]
[369035942,1751440267893,-490.0,0.00016869,2]
[369035943,1751440267903,-490.0,0.00016869,2]
[369035944,1751440267912,-490.0,0.00016869,2]
[369035945,1751440267923,-490.0,0.00016869,2]
[369035946,1751440267933,-490.0,0.00016869,2]
[369035947,1751440267943,-490.0,0.00016869,2]
[369035948,1751440267953,-490.0,0.00016869,2]
[369035949,1751440267964,-490.0,0.00016869,2]
[369035950,1751440267973,-490.0,0.00016869,2]
[369035951,1751440267983,-490.0,0.00016869,2]
[369035952,1751440267993,-490.0,0.00016869,2]
[369035953,1751440268007,-500.0,0.00016869,2]
[369035954,1751440268016,-500.0,0.00016869,2]
[369035955,1751440268027,-500.0,0.00016869,2]
[369035956,1751440268037,-500.0,0.00016869,2]
[369035957,1751440268047,-500.0,0.00016869,2]
[369035958,1751440268057,-500.0,0.00016869,2]
[369035959,1751440268067,-2923.61,0.00016869,2]
[369035960,1751440268077,-3406.69,0.00016869,2]
[369035961,1751440268087,-4091.33,0.00016869,2]
[369035962,1751440268097,-2374.6,0.00016869,2]
[369035963,1751440268107,-2864.23,0.00016869,2]
[369035964,1751440268117,-328.24616597,0.00016869,2]
[369035996,1751441003396,160.03,0.00013699,2]
[369036050,1751441074661,1092.54,0.00027397,120]
[369036134,1751441369332,-150.0,0.00013998,2]
[369036135,1751441369363,-300.0,0.00013998,2]
[369036136,1751441369392,-250.0,0.00013999,2]
[369036137,1751441369423,-1190.02385897,0.00013999,2]
[369036138,1751441369453,-500.0,0.00013999,2]
[369036139,1751441369484,-500.0,0.00013999,2]
[369036140,1751441369514,-500.0,0.00013999,2]
[369036141,1751441369548,-500.0,0.00013999,2]
[369036142,1751441369579,-401.29797048,0.00013999,2]
[369036143,1751441369610,-500.0,0.00013999,2]
[369036144,1751441369642,-309.11015469,0.00013999,2]
[369036145,1751441369672,-500.0,0.00013999,2]
[369036146,1751441369706,-500.0,0.00013999,2]
[369036147,1751441369739,-500.0,0.00013999,2]
[369036148,1751441369771,-500.0,0.00013999,2]
[369036149,1751441369800,-500.0,0.00013999,2]
[369036150,1751441369829,-500.0,0.00013999,2]
[369036151,1751441369859,-332.93245273,0.00013999,2]
[369036152,1751441369889,-500.0,0.00013999,2]
[369036153,1751441369923,-502.5422733,0.00013999,2]
[369036154,1751441369955,-500.0,0.00013999,2]
[369036155,1751441369986,-173.53448877,0.00013999,2]
[369036156,1751441370016,-241.59533813,0.00013999,2]
[369036157,1751441370047,-500.0,0.00013999,2]
[369036158,1751441370077,-500.0,0.00013999,2]
[369036159,1751441370108,-500.0,0.00013999,2]
[369036160,1751441370138,-609.49616254,0.00013999,2]
[369036161,1751441370170,-500.0,0.00013999,2]
[369036162,1751441370200,-500.0,0.00013999,2]
[369036163,1751441370231,-500.0,0.00013999,2]
[369036164,1751441370262,-500.0,0.00013999,2]
[369036165,1751441370292,-500.0,0.00013999,2]
[369036166,1751441370375,-500.0,0.00013999,2]
[369036167,1751441370405,-500.0,0.00013999,2]
[369036168,1751441370436,-500.0,0.00013999,2]
[369036169,1751441370465,-500.0,0.00013999,2]
[369036170,1751441370703,-500.0,0.00013999,2]
[369036171,1751441370731,-500.0,0.00013999,2]
[369036172,1751441370762,-500.0,0.00013999,2]
[369036173,1751441370794,-500.0,0.00013999,2]
[369036174,1751441370824,-500.0,0.00013999,2]
[369036175,1751441370853,-500.0,0.00013999,2]
[369036176,1751441370884,-500.0,0.00013999,2]
[369036177,1751441370917,-500.0,0.00013999,2]
[369036178,1751441370949,-500.0,0.00013999,2]
[369036179,1751441370981,-500.0,0.00013999,2]
[369036180,1751441371012,-362.65626224,0.00013999,2]
[369036181,1751441371043,-500.0,0.00013999,2]
[369036182,1751441371075,-454.59394216,0.00013999,2]
[369036183,1751441371105,-500.0,0.00013999,2]
[369036184,1751441371136,-500.0,0.00013999,2]
[369036185,1751441371167,-257.02335363,0.00013999,2]
[369036186,1751441371197,-500.0,0.00013999,2]
[369036187,1751441371227,-411.79222198,0.00013999,2]
[369036188,1751441371257,-268.6375167,0.00013999,2]
[369036189,1751441371290,-271.49542875,0.00013999,2]
[369036190,1751441373336,177.94780555,0.000139,2]
[369036191,1751441377495,-8304.59040438,0.00014,2]
[369036201,1751441431911,-397.08,0.0001399,2]
[369036202,1751441431921,-93.48126682,0.0001399,2]
[369036204,1751441431953,-303.59873318,0.0001399,2]
[369036206,1751441431963,-8.28716933,0.00013999,2]
[369036209,1751441431974,-1191.71283067,0.00013999,2]
[369036211,1751441431985,-150.0,0.00013999,2]
[369036213,1751441431994,-250.0,0.00014,2]
[369036214,1751441432005,-2416.88852787,0.00014,2]
[369036215,1751441432016,-1450.00000001,0.00014,2]
[369036216,1751441432028,-1670.81080475,0.00014,2]
[369036217,1751441432053,-1923.21789754,0.00014,2]
[369036218,1751441432209,-790.25782199,0.00014,2]
[369036219,1751441432221,-1583.28214452,0.00014,2]
[369036220,1751441432232,-8329.96622916,0.00014,2]
[369036221,1751441432244,-4983.2657488,0.00014,2]
[369036222,1751441432255,-27407.55820324,0.00014,2]
[369036223,1751441432273,-64522.66520113,0.00014,2]
[369036224,1751441432284,-31759.85997988,0.00014,2]
[369036225,1751441432296,-3352.39353182,0.00014,2]
[369036226,1751441432308,-11560.72,0.00014,2]
[369036227,1751441432320,-631.28093403,0.00014,2]
[369036230,1751441432342,-606.54860783,0.00014,2]
[369036233,1751441432358,-9300.53518099,0.00014,2]
[369036234,1751441432385,-832.45139217,0.00014,2]
[369036235,1751441432397,-1380.9197871,0.00014,2]
[369036250,1751441437989,-1994.90716357,0.00014,2]
[369036251,1751441438001,-1520.0909871,0.00014,2]
[369036252,1751441438019,-3706.26467331,0.00014,2]
[369036253,1751441438051,-4129.8,0.00014,2]
[369036254,1751441438270,-613.43772569,0.00014,2]
[369036259,1751441438319,-456.94999604,0.00014,2]
[369036262,1751441438331,-10454.91467807,0.00014,2]
[369036264,1751441438342,-1454.3225435,0.00014,2]
[369036266,1751441438354,-916.34,0.00014,2]
[369036436,1751441440144,-1821.01429702,0.00014,2]
[369036448,1751441440257,-472.46077767,0.00014,2]
[369036461,1751441440373,-311239.45508231,0.00014,2]
[369036463,1751441440383,-95695.77,0.00014,2]
[369036465,1751441440392,-177.94780538,0.00014051,2]
[369036467,1751441440401,-177.94780538,0.00014202,2]
[369036469,1751441440411,-716.13185513,0.0001421,7]
[369036471,1751441440420,-177.94780538,0.00014353,2]
[369036473,1751441440429,-177.94780538,0.00014504,2]
[369036475,1751441440438,-177.94780538,0.00014654,2]
[369036477,1751441440448,-157.38734728,0.000147,2]
[369036479,1751441440458,-4929.67741882,0.000148,2]
[369036481,1751441440467,-165.51313572,0.000148,2]
[369036483,1751441440476,-177.94780538,0.00014805,2]
[369036485,1751441440486,-4434.7691794,0.000149,2]
[369036487,1751441440495,-177.94780538,0.00014956,2]
[369036489,1751441440504,-250.0,0.00015,2]
[369036491,1751441440514,-300.0,0.00015,2]
[369036493,1751441440523,-3513.25,0.000151,2]
[369036495,1751441440532,-177.94780538,0.00015107,2]
[369036497,1751441440542,-255.0,0.00015119,2]
[369036499,1751441440551,-4929.67741873,0.00015139,2]
[369036501,1751441440561,-200.0,0.00015178,7]
[369036503,1751441440569,-177.94780538,0.00015258,2]
[369036505,1751441440579,-491.39,0.0001536,2]
[369036507,1751441440587,-491.39,0.00015364,2]
[369036509,1751441440596,-491.39,0.00015368,2]
[369036511,1751441440606,-491.39,0.00015373,2]
[369036513,1751441440615,-491.39,0.00015377,2]
[369036515,1751441440624,-491.39,0.00015381,2]
[369036517,1751441440633,-491.39,0.00015385,2]
[369036519,1751441440643,-491.39,0.00015389,2]
[369036521,1751441440652,-491.39,0.00015393,2]
[369036523,1751441440662,-491.39,0.00015397,2]
[369036525,1751441440671,-250.0,0.00015398,2]
[369036527,1751441440680,-250.0,0.00015399,2]
[369036529,1751441440690,-1680.0,0.00015399,2]
[369036531,1751441440699,-491.39,0.00015401,2]
[369036533,1751441440708,-491.39,0.00015405,2]
[369036535,1751441440717,-177.94780538,0.00015409,2]
[369036537,1751441440727,-491.39,0.00015409,2]
[369036539,1751441440736,-491.39,0.00015413,2]
[369036541,1751441440746,-491.39,0.00015417,2]
[369036543,1751441440755,-491.39,0.00015421,2]
[369036545,1751441440764,-491.39,0.00015425,2]
[369036547,1751441440773,-491.39,0.00015429,2]
[369036549,1751441440783,-491.39,0.00015433,2]
[369036551,1751441440793,-491.39,0.00015437,2]
[369036553,1751441440803,-4929.67741873,0.00015478,2]
[369036555,1751441440812,-300.0,0.00015548,2]
[369036557,1751441440821,-177.94780538,0.0001556,2]
[369036559,1751441440831,-709.96,0.00015562,2]
[369036561,1751441440840,-151.0,0.00015663,2]
[369036563,1751441440849,-4434.76917925,0.00015693,2]
[369036565,1751441440858,-177.94780538,0.00015711,2]
[369036567,1751441440868,-276.07,0.00015722,2]
[369036568,1751441440877,-1000.0,0.00015735,2]
[369036570,1751441440887,-4929.67741873,0.00015816,2]
[369036573,1751441440898,-151.0,0.00015827,2]
[369036575,1751441440911,-177.94780538,0.00015862,2]
[369036577,1751441440920,-370.0,0.00015973,2]
[369036579,1751441440931,-151.0,0.00015975,2]
[369036580,1751441440942,-177.94780538,0.00016013,2]
[369036582,1751441440951,-167.47,0.00016027,2]
[369036584,1751441440961,-1598.0,0.00016034,2]
[369036587,1751441440970,-1598.0,0.00016037,2]
[369036588,1751441440980,-300.0,0.00016096,2]
[369036590,1751441440990,-157.38734727,0.00016106,2]
[369036592,1751441440999,-151.0,0.00016128,2]
[369036595,1751441441010,-4929.67741873,0.00016155,2]
[369036597,1751441441020,-163.0,0.00016301,2]
[369036598,1751441441030,-433.0,0.00016323,2]
[369036599,1751441441039,-1553.0,0.00016369,2]
[369036601,1751441441048,-458.71645052,0.00016392,2]
[369036603,1751441441058,-490.0,0.00016438,2]
[369036605,1751441441068,-490.0,0.00016438,2]
[369036607,1751441441077,-490.0,0.00016438,2]
[369036609,1751441441086,-490.0,0.00016438,2]
[369036611,1751441441096,-490.0,0.00016438,2]
[369036613,1751441441106,-490.0,0.00016438,2]
[369036615,1751441441115,-490.0,0.00016438,2]
[369036617,1751441441124,-1076.07,0.00016438,2]
[369036619,1751441441133,-490.0,0.00016438,2]
[369036621,1751441441142,-1271.74,0.00016438,2]
[369036623,1751441441152,-490.0,0.00016438,2]
[369036625,1751441441161,-490.0,0.00016438,2]
[369036627,1751441441170,-1267.68,0.00016438,2]
[369036629,1751441441179,-2686.38,0.00016438,2]
[369036631,1751441441189,-483.98035328,0.00016438,2]
[369036633,1751441441198,-490.0,0.00016438,2]
[369036635,1751441441208,-845.78,0.00016438,2]
[369036637,1751441441217,-490.0,0.00016438,2]
[369036639,1751441441226,-1210.33,0.00016438,2]
[369036641,1751441441235,-490.0,0.00016438,2]
[369036642,1751441441244,-331.60444597,0.00016438,2]
[369036644,1751441441253,-607.3,0.00016438,2]
[369036647,1751441441263,-1381.63,0.00016438,2]
[369036648,1751441441272,-490.0,0.00016438,2]
[369036650,1751441441282,-490.0,0.00016438,2]
[369036652,1751441441291,-490.0,0.00016438,2]
[369036654,1751441441302,-919.06,0.00016438,2]
[369036656,1751441441311,-490.0,0.00016438,2]
[369036658,1751441441321,-490.0,0.00016438,2]
[369036660,1751441441332,-904.67,0.00016438,2]
[369036662,1751441441342,-501.57656252,0.00016438,2]
[369036665,1751441441351,-490.0,0.00016438,2]
[369036667,1751441441360,-490.0,0.00016438,2]
[369036669,1751441441370,-490.0,0.00016438,2]
[369036670,1751441441379,-490.0,0.00016438,2]
[369036672,1751441441388,-490.0,0.00016438,2]
[369036693,1751441441571,-490.0,0.00016438,2]
[369036695,1751441441583,-490.0,0.00016438,2]
[369036697,1751441441597,-490.0,0.00016438,2]
[369036699,1751441441607,-490.0,0.00016438,2]
[369036701,1751441441616,-490.0,0.00016438,2]